fUST/lending_fUST_20260210
["ID","MTS","AMOUNT","RATE_DAILY","PERIOD"]
[404912821,1770673826352,-937.67,0.00050061,120]
[404912822,1770673826376,-220.47,0.00050136,30]
[404912823,1770673826400,-322.106644,0.00050169,2]
[404912824,1770673826426,-937.67,0.00050544,120]
[404912825,1770673826452,-220.47,0.00050821,33]
[404912826,1770673826479,-937.67,0.00051027,120]
[404912827,1770673826505,-220.47,0.00051506,36]
[404912828,1770673826532,-937.67,0.0005151,120]
[404912829,1770673826560,-168.03,0.000516,120]
[404912830,1770673826586,-937.67,0.00051993,120]
[404912831,1770673826616,-1813.56,0.00052,2]
[404912832,1770673826644,-220.47,0.00052191,39]
[404912833,1770673826670,-937.67,0.00052476,120]
[404912834,1770673826699,-158.0,0.000527,120]
[404912835,1770673826726,-220.47,0.00052876,42]
[404912836,1770673826752,-954388.15528095,0.000529,120]
[404912837,1770673826779,-928.34,0.00052959,120]
[404912838,1770673826808,-1000.0,0.00053,120]
[404912839,1770673826834,-220.47,0.00053561,45]
[404912840,1770673826861,-220.47,0.00054246,48]
[404912841,1770673826888,-1000.0,0.00054303,120]
[404912842,1770673826913,-500.0,0.00054794,120]
[404912843,1770673826939,-500.0,0.00054794,120]
[404912844,1770673826963,-500.0,0.00054794,14]
[404912845,1770673826989,-500.0,0.00054794,120]
[404912846,1770673827018,-500.0,0.00054794,120]
[404912847,1770673827044,-500.0,0.00054794,120]
[404912848,1770673827070,-212.56189916,0.00054794,120]
[404912849,1770673827094,-1000.0,0.00054794,2]
[404912850,1770673827121,-500.0,0.00054794,120]
[404912851,1770673827148,-500.0,0.00054794,120]
[404912852,1770673827174,-500.0,0.00054794,120]
[404912853,1770673827199,-579.04719475,0.00054794,120]
[404912854,1770673827224,-500.0,0.00054794,120]
[404912855,1770673827250,-500.0,0.00054794,120]
[404912856,1770673827276,-500.0,0.00054794,120]
[404912857,1770673827302,-500.0,0.00054794,120]
[404912858,1770673827330,-556.39158612,0.00054794,120]
[404912859,1770673827355,-500.0,0.00054794,120]
[404912860,1770673827379,-334.52277967,0.00054794,120]
[404912861,1770673827403,-500.0,0.00054794,120]
[404912862,1770673827428,-441.09052783,0.00054794,120]
[404912863,1770673827451,-599.32973032,0.00054794,120]
[404912864,1770673827476,-500.0,0.00054794,120]
[404912865,1770673827501,-500.0,0.00054794,53]
[404912866,1770673827526,-221.38150099,0.00054794,120]
[404912867,1770673827551,-500.0,0.00054794,120]
[404912868,1770673827578,-500.0,0.00054794,120]
[404912869,1770673827604,-500.0,0.00054794,120]
[404912870,1770673827630,-500.0,0.00054794,120]
[404912871,1770673827659,-500.0,0.00054794,120]
[404912872,1770673827683,-389.60397015,0.00054794,120]
[404912873,1770673827708,-500.0,0.00054794,120]
[404912874,1770673827733,-500.0,0.00054794,2]
[404912875,1770673827758,-500.0,0.00054794,120]
[404912876,1770673827783,-627.82893971,0.00054794,120]
[404912877,1770673827811,-297.74052114,0.00054794,120]
[404912878,1770673827835,-513.99985955,0.00054794,120]
[404912879,1770673827860,-505.65355948,0.00054794,120]
[404912880,1770673827894,-500.0,0.00054794,120]
[404912881,1770673827924,-500.0,0.00054794,120]
[404912882,1770673827951,-501.18447383,0.00054794,120]
[404912883,1770673827979,-500.0,0.00054794,2]
[404912884,1770673828005,-380.65462605,0.00054794,120]
[404912885,1770673828031,-500.0,0.00054794,120]
[404912886,1770673828059,-169.72675475,0.00054794,120]
[404912887,1770673828090,-500.0,0.00054794,120]
[404912888,1770673828117,-500.0,0.00054794,120]
[404912889,1770673828143,-525.31812738,0.00054794,120]
[404912890,1770673828169,-500.0,0.00054794,120]
[404912891,1770673828195,-500.0,0.00054794,120]
[404912892,1770673828220,-241.0534214,0.00054794,120]
[404912893,1770673828245,-500.0,0.00054794,120]
[404912894,1770673828270,-535.44374016,0.00054794,120]
[404912895,1770673828295,-500.0,0.00054794,120]
[404912896,1770673828323,-500.0,0.00054794,120]
[404912897,1770673828348,-617.98585279,0.00054794,120]
[404912898,1770673828374,-511.05107971,0.00054794,120]
[404912899,1770673828398,-500.0,0.00054794,120]
[404912900,1770673828423,-500.0,0.00054794,120]
[404912901,1770673828449,-500.0,0.00054794,120]
[404912902,1770673828474,-500.0,0.00054794,120]
[404912903,1770673828503,-505.89292446,0.00054794,120]
[404912904,1770673828528,-500.0,0.00054794,120]
[404912905,1770673828555,-500.0,0.00054794,2]
[404912906,1770673828582,-500.0,0.00054794,120]
[404912907,1770673828607,-509.54767179,0.00054794,120]
[404912908,1770673828751,-500.0,0.00054794,120]
[404912909,1770673828777,-500.0,0.00054794,120]
[404912910,1770673828803,-247.70287884,0.00054794,120]
[404912911,1770673828829,-158.82869099,0.00054794,120]
[404912912,1770673828857,-450.61697123,0.00054794,120]
[404912913,1770673828882,-506.5864833,0.00054794,120]
[404912914,1770673828906,-218.56071638,0.00054794,120]
[404912915,1770673828931,-510.7724401,0.00054794,120]
[404912916,1770673828959,-552.57922192,0.00054794,120]
[404912917,1770673828984,-542.75050476,0.00054794,120]
[404912918,1770673829009,-500.0,0.00054794,120]
[404912919,1770673829035,-437.63200818,0.00054794,120]
[404912920,1770673829060,-170.01195029,0.00054794,120]
[404912921,1770673829085,-500.0,0.00054794,120]
[404912922,1770673829109,-531.3207868,0.00054794,120]
[404912923,1770673829134,-189.84657036,0.00054794,30]
[404912924,1770673829159,-500.0,0.00054794,120]
[404912925,1770673829182,-500.0,0.00054794,120]
[404912926,1770673829206,-156.56539319,0.00054794,120]
[404912927,1770673829230,-500.0,0.00054794,120]
[404912928,1770673829256,-500.0,0.00054794,120]
[404912929,1770673829280,-500.0,0.00054794,120]
[404912930,1770673829305,-519.40443681,0.00054794,120]
[404912931,1770673829330,-543.79984557,0.00054794,120]
[404912932,1770673829356,-189.35931067,0.00054794,120]
[404912933,1770673829382,-519.52134805,0.00054794,120]
[404912934,1770673829406,-499.22393283,0.00054794,120]
[404912935,1770673829430,-500.0,0.00054794,120]
[404912936,1770673829453,-573.47644109,0.00054794,120]
[404912937,1770673829477,-500.0,0.00054794,120]
[404912938,1770673829501,-500.0,0.00054794,120]
[404912939,1770673829525,-500.0,0.00054794,120]
[404912940,1770673829549,-500.0,0.00054794,120]
[404912941,1770673829575,-194.59245267,0.00054794,120]
[404912942,1770673829599,-500.0,0.00054794,120]
[404912943,1770673829624,-500.0,0.00054794,120]
[404912944,1770673829652,-522.80758013,0.00054794,120]
[404912945,1770673829678,-500.0,0.00054794,120]
[404912946,1770673829704,-500.93074508,0.00054794,120]
[404912947,1770673829733,-598.84902679,0.00054794,120]
[404912948,1770673829760,-546.05,0.00054794,120]
[404912949,1770673829785,-500.0,0.00054794,120]
[404912950,1770673829810,-213.21553117,0.00054794,120]
[404912951,1770673829835,-500.0,0.00054794,2]
[404912952,1770673829860,-504.03927025,0.00054794,120]
[404912953,1770673829885,-500.0,0.00054794,120]
[404912954,1770673829910,-500.0,0.00054794,14]
[404912955,1770673829937,-620.66,0.00054794,120]
[404912956,1770673829963,-609.83380113,0.00054794,120]
[404912957,1770673829988,-161.88094603,0.00054794,120]
[404912958,1770673830012,-587.87,0.00054794,120]
[404912959,1770673830038,-500.0,0.00054794,120]
[404912960,1770673830064,-4538.91,0.00054794,21]
[404912961,1770673830090,-500.0,0.00054794,120]
[404912962,1770673830115,-550.28,0.00054794,120]
[404912963,1770673830140,-566.20326143,0.00054794,120]
[404912964,1770673830164,-602.52284672,0.00054794,120]
[404912965,1770673830189,-500.0,0.00054794,120]
[404912966,1770673830214,-500.0,0.00054794,120]
[404912967,1770673830239,-500.0,0.00054794,120]
[404912968,1770673830265,-500.0,0.00054794,120]
[404912969,1770673830291,-500.0,0.00054794,120]
[404912970,1770673830316,-500.0,0.00054794,120]
[404912971,1770673830343,-500.0,0.00054794,120]
[404912972,1770673830371,-1494.13,0.00054794,120]
[404912973,1770673830397,-500.0,0.00054794,120]
[404912974,1770673830422,-500.0,0.00054794,120]
[404912975,1770673830448,-500.0,0.00054794,120]
[404912976,1770673830485,-500.0,0.00054794,120]
[404912977,1770673830513,-500.0,0.00054794,120]
[404912978,1770673830539,-500.0,0.00054794,120]
[404912979,1770673830565,-500.0,0.00054794,120]
[404912980,1770673830589,-166.22879273,0.00054794,120]
[404912981,1770673830614,-527.46293757,0.00054794,120]
[404912982,1770673830639,-500.0,0.00054794,120]
[404912983,1770673830668,-500.0,0.00054794,120]
[404912984,1770673830697,-208.40709229,0.00054794,120]
[404912985,1770673830722,-153.38436167,0.00054794,120]
[404912986,1770673830750,-500.0,0.00054794,120]
[404912987,1770673830776,-500.0,0.00054794,120]
[404912988,1770673830802,-520.12771957,0.00054794,120]
[404912989,1770673830829,-500.0,0.00054794,120]
[404912990,1770673830855,-617.90712018,0.00054794,120]
[404912991,1770673830881,-500.0,0.00054794,120]
[404912992,1770673830909,-193.9518494,0.00054794,120]
[404912993,1770673830936,-500.0,0.00054794,120]
[404912994,1770673830963,-500.0,0.00054794,30]
[404912995,1770673831115,-500.0,0.00054794,120]
[404912996,1770673831140,-311.22459131,0.00054794,120]
[404912997,1770673831167,-500.0,0.00054794,120]
[404912998,1770673831192,-500.0,0.00054794,120]
[404912999,1770673831218,-500.0,0.00054794,30]
[404913000,1770673831244,-500.0,0.00054794,120]
[404913001,1770673831270,-555.82714739,0.00054794,120]
[404913002,1770673831294,-263.38553367,0.00054794,120]
[404913003,1770673831322,-500.0,0.00054794,120]
[404913004,1770673831347,-500.0,0.00054794,120]
[404913005,1770673831374,-500.0,0.00054794,120]
[404913006,1770673831401,-244.44434144,0.00054794,120]
[404913007,1770673831425,-500.0,0.00054794,120]
[404913008,1770673831450,-153.00837104,0.00054794,120]
[404913009,1770673831475,-15915.96,0.00054794,120]
[404913010,1770673831501,-442.62515395,0.00054794,120]
[404913011,1770673831526,-1571.51,0.00054794,20]
[404913012,1770673831551,-160.35280439,0.00054794,120]
[404913013,1770673831576,-500.0,0.00054794,120]
[404913014,1770673831601,-636.44,0.00054794,120]
[404913015,1770673831629,-8000.0,0.000549,120]
[404913016,1770673831659,-220.47,0.00054931,51]
[404913017,1770673831683,-898.32,0.00055,14]
[404913018,1770673831711,-38000.0,0.00055059,18]
[404913019,1770673831737,-38000.0,0.00055068,18]
[404913020,1770673831762,-24997.07157583,0.00055068,18]
[404913021,1770673831788,-158.0,0.000554,120]
[404913022,1770673831815,-220.47,0.00055616,54]
[404913025,1770673831842,-150.0,0.00056073,120]
[404913030,1770673831869,-220.47,0.00056301,57]
[404913034,1770673831893,-712.0,0.00056574,31]
[404913036,1770673831926,-220.47,0.00056986,60]
[404913038,1770673831952,-1000.0,0.00057,120]
[404913042,1770673831977,-1813.56,0.00057,2]
[404913046,1770673832002,-711.0,0.00057054,31]
[404913049,1770673832027,-220.47,0.00057671,63]
[404913053,1770673832053,-158.0,0.000581,120]
[404913057,1770673832081,-712.0,0.00058334,31]
[404913061,1770673832108,-220.47,0.00058356,66]
[404913065,1770673832133,-220.47,0.00059041,69]
[404913068,1770673832159,-401.0,0.0005956,61]
[404913072,1770673832184,-220.47,0.00059726,72]
[404913076,1770673832212,-1000.0,0.00059734,120]
[404913080,1770673832240,-244.0,0.00059734,120]
[404913084,1770673832266,-5000.0,0.0006,7]
[404913088,1770673832292,-46982.48614094,0.0006,120]
[404913091,1770673832317,-523.42858369,0.0006,120]
[404913095,1770673832343,-500.0,0.00060273,120]
[404913099,1770673832368,-531.18910455,0.00060273,120]
[404913102,1770673832393,-521.32546337,0.00060273,14]
[404913106,1770673832422,-1000.0,0.00060273,2]
[404913110,1770673832448,-500.0,0.00060273,120]
[404913114,1770673832475,-500.0,0.00060273,120]
[404913118,1770673832501,-500.0,0.00060273,2]
[404913122,1770673832528,-500.0,0.00060273,120]
[404913126,1770673832557,-500.0,0.00060273,120]
[404913130,1770673832585,-297.77,0.00060273,120]
[404913133,1770673832612,-380.16,0.00060273,120]
[404913137,1770673832638,-500.0,0.00060273,120]
[404913141,1770673832668,-500.0,0.00060273,2]
[404913145,1770673832697,-587.87,0.00060273,120]
[404913148,1770673832725,-500.0,0.00060273,120]
[404913152,1770673832752,-4538.91,0.00060273,21]
[404913156,1770673832780,-337.13956039,0.00060273,120]
[404913160,1770673832806,-500.0,0.00060273,120]
[404913164,1770673832835,-644.06258884,0.00060273,120]
[404913167,1770673832861,-500.0,0.00060273,120]
[404913171,1770673832887,-334.6406991,0.00060273,120]
[404913175,1770673832915,-241.78,0.00060273,30]
[404913179,1770673832941,-15915.96,0.00060273,120]
[404913183,1770673832967,-1571.51,0.00060273,20]
[404913186,1770673832991,-239.65222217,0.00060274,2]
[404913190,1770673833018,-220.47,0.0006041,120]
[404913194,1770673833044,-158.0,0.000608,120]
[404913198,1770673833069,-401.0,0.0006084,61]
[404913201,1770673833093,-500.0,0.00061,120]
[404913205,1770673833119,-220.47,0.00061095,120]
[404913209,1770673833143,-220.47,0.0006178,120]
[404913213,1770673833170,-150.0,0.00062081,120]
[404913216,1770673833196,-220.47,0.00062465,120]
[404913220,1770673833221,-898.32,0.000625,14]
[404913224,1770673833246,-161.0,0.00063107,31]
[404913228,1770673833272,-220.47,0.0006315,120]
[404913231,1770673833297,-1813.56,0.000632,2]
[404913244,1770673833410,-150.27,0.00063457,30]
[404913248,1770673833436,-158.0,0.000635,120]
[404913251,1770673833462,-220.47,0.00063835,120]
[404913255,1770673833487,-1444.0,0.0006389,120]
[404913259,1770673833511,-220.47,0.0006452,120]
[404913263,1770673833540,-2000.0,0.00064999,30]
[404913266,1770673833565,-220.47,0.00065205,120]
[404913270,1770673833593,-1000.0,0.00065707,120]
[404913274,1770673833620,-492.0,0.00065707,120]
[404913278,1770673833647,-500.0,0.00065753,120]
[404913281,1770673833671,-1000.0,0.00065753,2]
[404913285,1770673833699,-500.0,0.00065753,120]
[404913289,1770673833727,-500.0,0.00065753,120]
[404913293,1770673833753,-500.0,0.00065753,2]
[404913297,1770673833781,-500.0,0.00065753,120]
[404913300,1770673833807,-500.0,0.00065753,120]
[404913304,1770673833832,-500.0,0.00065753,120]
[404913308,1770673833859,-500.0,0.00065753,2]
[404913312,1770673833884,-587.87,0.00065753,120]
[404913315,1770673833911,-260.36371719,0.00065753,120]
[404913319,1770673833938,-4538.91,0.00065753,21]
[404913322,1770673833965,-500.0,0.00065753,120]
[404913326,1770673833990,-15915.96,0.00065753,120]
[404913330,1770673834015,-1571.51,0.00065753,20]
[404913333,1770673834040,-220.51685992,0.0006589,120]
[404913337,1770673834066,-158.0,0.000662,120]
[404913341,1770673834093,-3211.37921964,0.00066897,2]
[404913345,1770673834117,-166.45332548,0.00067507,2]
[404913349,1770673834143,-193.2,0.00068088,120]
[404913352,1770673834170,-158.0,0.000689,120]
[404913356,1770673834196,-300.54,0.00070256,30]
[404913360,1770673834222,-898.32,0.000708,14]
[404913364,1770673834247,-500.0,0.00071,120]
[404913367,1770673834273,-182.15979799,0.00071123,7]
[404913371,1770673834298,-500.0,0.00071232,120]
[404913375,1770673834324,-1000.0,0.00071232,2]
[404913378,1770673834351,-500.0,0.00071232,120]
[404913382,1770673834375,-500.0,0.00071232,120]
[404913386,1770673834400,-500.0,0.00071232,2]
[404913389,1770673834425,-500.0,0.00071232,120]
[404913393,1770673834449,-500.0,0.00071232,120]
[404913397,1770673834481,-500.0,0.00071232,120]
[404913402,1770673834513,-500.0,0.00071232,2]
[404913406,1770673834544,-587.87,0.00071232,120]
[404913411,1770673834576,-4538.91,0.00071232,21]
[404913415,1770673834606,-610.6884495,0.00071232,120]
[404913420,1770673834638,-15915.96,0.00071232,120]
[404913424,1770673834670,-1571.51,0.00071232,20]
[404913428,1770673834703,-158.0,0.000716,120]
[404913433,1770673834737,-1813.56,0.000719,2]
[404913437,1770673834769,-1000.0,0.00072278,120]
[404913442,1770673834804,-791.0,0.00072278,120]
[404913446,1770673834839,-257.6,0.00074096,120]
[404913450,1770673834868,-158.0,0.000743,120]
[404913455,1770673834899,-376.33187294,0.0007474,120]
[404913459,1770673834931,-500.0,0.00076712,120]
[404913463,1770673834962,-1000.0,0.00076712,2]
[404913468,1770673834993,-501.56333392,0.00076712,120]
[404913472,1770673835024,-500.0,0.00076712,120]
[404913477,1770673835057,-499.97,0.00076712,2]
[404913481,1770673835086,-500.0,0.00076712,120]
[404913484,1770673835114,-413.468286,0.00076712,120]
[404913489,1770673835145,-500.0,0.00076712,120]
[404913493,1770673835179,-500.0,0.00076712,2]
[404913497,1770673835208,-587.87,0.00076712,120]
[404913502,1770673835238,-4538.91,0.00076712,21]
[404913506,1770673835269,-15915.96,0.00076712,120]
[404913510,1770673835298,-1571.51,0.00076712,20]
[404913514,1770673835328,-164.0,0.00077,120]
[404913518,1770673835357,-450.81,0.00077055,30]
[404913522,1770673835386,-165.10789054,0.00078356,30]
[404913527,1770673835417,-1000.0,0.00079506,120]
[404913531,1770673835449,-1000.0,0.00079506,120]
[404913535,1770673835479,-186.0,0.0008,120]
[404913539,1770673835508,-322.0,0.00080104,120]
[404913544,1770673835537,-163.42280781,0.00081973,14]
[404913548,1770673835567,-500.0,0.00082191,120]
[404913551,1770673835594,-1000.0,0.00082191,2]
[404913555,1770673835623,-500.0,0.00082191,120]
[404913559,1770673835654,-500.0,0.00082191,120]
[404913560,1770673835682,-501.75949267,0.00082191,120]
[404913563,1770673835827,-500.0,0.00082191,2]
[404913567,1770673835853,-587.87,0.00082191,120]
[404913571,1770673835879,-4538.91,0.00082191,21]
[404913574,1770673835905,-15915.96,0.00082191,120]
[404913578,1770673835932,-1571.51,0.00082191,20]
[404913582,1770673835957,-200.0,0.00082192,120]
[404913586,1770673835984,-200.0,0.00082192,120]
[404913590,1770673836010,-200.0,0.00082192,120]
[404913593,1770673836035,-200.0,0.00082192,120]
[404913597,1770673836060,-200.0,0.00082192,120]
[404913601,1770673836086,-200.0,0.00082192,120]
[404913604,1770673836112,-200.0,0.00082192,120]
[404913608,1770673836138,-200.0,0.00082192,120]
[404913612,1770673836164,-200.0,0.00082192,120]
[404913616,1770673836191,-200.0,0.00082192,120]
[404913620,1770673836218,-200.0,0.00082192,120]
[404913623,1770673836245,-200.0,0.00082192,120]
[404913627,1770673836274,-200.0,0.00082192,120]
[404913631,1770673836302,-200.0,0.00082192,120]
[404913635,1770673836328,-200.0,0.00082192,120]
[404913639,1770673836354,-200.0,0.00082192,120]
[404913642,1770673836380,-200.0,0.00082192,120]
[404913646,1770673836406,-200.0,0.00082192,120]
[404913650,1770673836432,-200.0,0.00082192,120]
[404913654,1770673836458,-200.0,0.00082192,120]
[404913657,1770673836485,-200.0,0.00082192,120]
[404913661,1770673836512,-200.0,0.00082192,120]
[404913665,1770673836539,-200.0,0.00082192,120]
[404913668,1770673836572,-200.0,0.00082192,120]
[404913672,1770673836603,-200.0,0.00082192,120]
[404913676,1770673836632,-601.07,0.00083854,30]
[404913680,1770673836664,-3366.23497799,0.00084421,2]
[404913684,1770673836693,-898.32,0.000845,30]
[404913687,1770673836723,-386.41,0.00086112,120]
[404913692,1770673836752,-1000.0,0.00087456,120]
[404913695,1770673836780,-1000.0,0.00087456,120]
[404913699,1770673836809,-579.0,0.00087456,120]
[404913703,1770673836838,-269.88528336,0.00087671,120]
[404913707,1770673836865,-1000.0,0.00087671,2]
[404913711,1770673836890,-500.0,0.00087671,120]
[404913714,1770673836916,-500.0,0.00087671,120]
[404913718,1770673836940,-500.0,0.00087671,2]
[404913722,1770673836969,-587.87,0.00087671,120]
[404913725,1770673836996,-4538.91,0.00087671,21]
[404913730,1770673837024,-1494.13,0.00087671,120]
[404913733,1770673837053,-15915.96,0.00087671,120]
[404913737,1770673837082,-1571.51,0.00087671,20]
[404913740,1770673837108,-150.0,0.00087671,30]
[404913744,1770673837134,-195.2290534,0.00087671,30]
[404913748,1770673837159,-1813.56,0.000877,2]
[404913751,1770673837183,-605.6861769,0.00088164,30]
[404913755,1770673837209,-605.6861771,0.00088164,30]
[404913759,1770673837235,-605.6861769,0.00088164,30]
[404913762,1770673837260,-185.953979,0.00088164,30]
[404913766,1770673837287,-605.6861769,0.00088164,30]
[404913770,1770673837314,-605.6861769,0.00088164,30]
[404913774,1770673837339,-185.953979,0.00088164,30]
[404913777,1770673837368,-185.953979,0.00088164,30]
[404913781,1770673837396,-185.953979,0.00088164,30]
[404913785,1770673837420,-185.953979,0.00088164,30]
[404913788,1770673837444,-185.953979,0.00088164,30]
[404913792,1770673837469,-605.6861769,0.00088164,30]
[404913796,1770673837495,-185.953979,0.00088164,30]
[404913800,1770673837519,-185.953979,0.00088164,30]
[404913803,1770673837544,-185.953979,0.00088164,30]
[404913807,1770673837570,-605.6861769,0.00088164,30]
[404913811,1770673837597,-185.953979,0.00088164,30]
[404913814,1770673837622,-185.953979,0.00088164,30]
[404913818,1770673837648,-185.953979,0.00088164,30]
[404913822,1770673837678,-185.953979,0.00088164,30]
[404913826,1770673837703,-185.953979,0.00088164,30]
[404913829,1770673837730,-185.953979,0.00088164,30]
[404913833,1770673837755,-185.953979,0.00088164,30]
[404913836,1770673837780,-195.2290534,0.00088493,30]
[404913840,1770673837807,-195.2290534,0.00088493,30]
[404913845,1770673837834,-150.0,0.00088493,30]
[404913848,1770673837858,-150.0,0.00088493,30]
[404913852,1770673837884,-379.8252637,0.00088493,30]
[404913856,1770673837909,-306.4985353,0.00088493,30]
[404913861,1770673837939,-306.4985353,0.00088493,30]
[404913865,1770673837966,-379.8252637,0.00088493,30]
[404913868,1770673837993,-234.1580906,0.00088493,30]
[404913872,1770673838019,-195.2290534,0.00088493,30]
[404913876,1770673838048,-217.1821996,0.00088493,30]
[404913880,1770673838076,-195.2290534,0.00088493,30]
[404913893,1770673838195,-150.0,0.00088493,30]
[404913894,1770673838222,-379.8252637,0.00088493,30]
[404913897,1770673838249,-306.4985353,0.00088493,30]
[404913901,1770673838276,-150.0,0.00088493,30]
[404913905,1770673838304,-195.2290534,0.00088493,30]
[404913909,1770673838334,-150.0,0.00088493,30]
[404913913,1770673838362,-195.2290534,0.00088493,30]
[404913917,1770673838390,-379.8252637,0.00088493,30]
[404913920,1770673838418,-306.4985353,0.00088493,30]
[404913925,1770673838448,-195.2290534,0.00088493,30]
[404913928,1770673838475,-150.0,0.00088493,30]
[404913933,1770673838502,-306.4985353,0.00088493,30]
[404913940,1770673838529,-379.8252637,0.00088493,30]
[404913947,1770673838557,-150.0,0.00088493,30]
[404913954,1770673838584,-195.2290534,0.00088493,30]
[404913958,1770673838611,-306.4985353,0.00088493,30]
[404913961,1770673838640,-379.8252637,0.00088493,30]
[404913965,1770673838666,-195.2290534,0.00088493,30]
[404913969,1770673838692,-150.0,0.00088493,30]
[404913973,1770673838721,-150.0,0.00088493,30]
[404913976,1770673838746,-195.2290534,0.00088493,30]
[404913980,1770673838773,-605.6861769,0.00088493,30]
[404913984,1770673838800,-379.8252637,0.00088493,30]
[404913988,1770673838827,-306.4985353,0.00088493,30]
[404913991,1770673838853,-150.0,0.00088493,30]
[404913995,1770673838879,-195.2290534,0.00088493,30]
[404913999,1770673838905,-306.4985353,0.00088493,30]
[404914002,1770673838934,-379.8252637,0.00088493,30]
[404914005,1770673838960,-195.2290534,0.00088493,30]
[404914009,1770673838988,-150.0,0.00088493,30]
[404914012,1770673839014,-379.8252637,0.00088493,30]
[404914016,1770673839040,-306.4985353,0.00088493,30]
[404914020,1770673839068,-195.2290534,0.00088493,30]
[404914024,1770673839096,-150.0,0.00088493,30]
[404914027,1770673839123,-195.2290534,0.00088493,30]
[404914031,1770673839150,-306.4985353,0.00088493,30]
[404914035,1770673839177,-379.8252637,0.00088493,30]
[404914038,1770673839203,-150.0,0.00088493,30]
[404914042,1770673839228,-195.2290534,0.00088493,30]
[404914046,1770673839253,-306.4985353,0.00088493,30]
[404914049,1770673839278,-605.6861769,0.00088493,30]
[404914053,1770673839302,-379.8252637,0.00088493,30]
[404914057,1770673839327,-150.0,0.00088493,30]
[404914060,1770673839352,-195.2290534,0.00088493,30]
[404914064,1770673839376,-379.8252637,0.00088493,30]
[404914067,1770673839401,-306.4985353,0.00088493,30]
[404914071,1770673839426,-150.0,0.00088493,30]
[404914075,1770673839452,-195.2290534,0.00088493,30]
[404914079,1770673839477,-306.4985353,0.00088493,30]
[404914082,1770673839502,-195.2290534,0.00088493,30]
[404914086,1770673839526,-150.0,0.00088493,30]
[404914089,1770673839551,-379.8252637,0.00088493,30]
[404914093,1770673839576,-605.6861769,0.00088493,30]
[404914097,1770673839601,-306.4985353,0.00088493,30]
[404914100,1770673839625,-195.2290534,0.00088493,30]
[404914104,1770673839653,-150.0,0.00088493,30]
[404914108,1770673839679,-379.8252637,0.00088493,30]
[404914111,1770673839704,-306.4985353,0.00088493,30]
[404914115,1770673839729,-195.2290534,0.00088493,30]
[404914118,1770673839754,-150.0,0.00088493,30]
[404914122,1770673839779,-379.8252637,0.00088493,30]
[404914126,1770673839804,-150.0,0.00088493,30]
[404914129,1770673839829,-195.2290534,0.00088493,30]
[404914133,1770673839855,-195.2290534,0.00088493,30]
[404914137,1770673839882,-306.4985353,0.00088493,30]
[404914140,1770673839908,-605.6861769,0.00088493,30]
[404914144,1770673839935,-217.8631891,0.00088493,30]
[404914148,1770673839962,-379.8252637,0.00088493,30]
[404914152,1770673839989,-306.4985353,0.00088493,30]
[404914155,1770673840015,-195.2290534,0.00088493,30]
[404914159,1770673840044,-379.8252637,0.00088493,30]
[404914163,1770673840070,-605.6861769,0.00088493,30]
[404914167,1770673840096,-195.2290534,0.00088493,30]
[404914170,1770673840122,-379.8252637,0.00088493,30]
[404914174,1770673840148,-605.6861769,0.00088493,30]
[404914178,1770673840174,-185.953979,0.00088493,30]